Cogmind - Beta 16.1 @@@ ROGUE MODE // 2026.04.09 @ 19:10:43 Player: WitherScout Result: Self-destructed Performance ------------- Evolutions (2) 1000 Regions Visited (3) 600 Robots Destroyed (43) 215 Value Destroyed (1062) 1062 Prototype IDs (0) 0 Alien Tech Used (0) 0 Bonus (0) 0 TOTAL SCORE: 2877 Bonus ------- None Cogmind --------- Core Integrity 91/550 Matter 25/300 Energy 100/100 System Corruption 0% Temperature Cool (0) Movement Core (50) Location -8/Materials Parts ------- > --- POWER (1) -------- (None) > --- PROPULSION (6) --- (None) > --- UTILITY (2) ------ (None) > --- WEAPON (2) ------- (None) > --- INVENTORY (5) ---- Flight Unit Flight Unit VTOL Module Small Storage Unit Tractor Beam Peak State ------------ > --- POWER ------------ Ion Engine > --- PROPULSION ------- VTOL Module VTOL Module VTOL Module VTOL Module > --- UTILITY ---------- Huge Storage Unit Improved Terrain Scanner > --- WEAPON ----------- Shotgun Shotgun > --- INVENTORY -------- Flight Unit Flight Unit Flight Unit Flight Unit Flight Unit Flight Unit Improved Heat Sink Small Storage Unit Medium Battery Seismic Detector Targeting Computer Light Armor Plating Hardened Light Armor Plating Hacking Suite Tractor Beam Light Assault Rifle Shotgun Shotgun Light Cannon Improved Light Cannon [Rating: 19] Favorites ----------- Power Ion Engine Engine Ion Engine Propulsion Compact Wheel Leg Aluminum Leg Wheel Compact Wheel Hover Unit Hover Unit Flight Unit VTOL Module Utility Improved Terrain Scanner Device Improved Terrain Scanner Storage Huge Storage Unit Processor Targeting Computer Weapon Shotgun Energy Gun Medium Laser Ballistic Gun Shotgun Ballistic Cannon Light Cannon Launcher Grenade Launcher Build | -11 -10 -9 -8 ------- Run | Yrd Mat Mat Mat Slots Evolved 4 | . . 2 2 Power . | . . . . Propulsion 4 | . . 2 2 Utility . | . . . . Weapon . | . . . . Parts Attached 43 | 7 13 17 6 Power 6 | 1 2 2 1 Engine 6 | 1 2 2 1 Core . | . . . . Reactor . | . . . . Propulsion 15 | 2 3 10 . Treads . | . . . . Leg 3 | . . 3 . Wheel 7 | 2 2 3 . Hover 1 | . 1 . . Flight 4 | . . 4 . Utility 6 | 1 3 1 1 Device 2 | . 2 . . Storage 3 | 1 1 1 . Processor 1 | . . . 1 Hackware . | . . . . Protection . | . . . . Artifact . | . . . . Weapon 16 | 3 5 4 4 Energy Gun 4 | 2 2 . . Energy Cannon . | . . . . Ballistic Gun 7 | 1 2 2 2 Ballistic Cannon 4 | . . 2 2 Launcher 1 | . 1 . . Special Weapon . | . . . . Impact Weapon . | . . . . Slashing Weapon . | . . . . Piercing Weapon . | . . . . Special Melee Weapon . | . . . . Unidentified Prototypes . | . . . . Parts Lost 34 | . 10 10 14 Power 5 | . 2 2 1 Propulsion 12 | . 3 5 4 Utility 5 | . 1 . 4 Weapon 12 | . 4 3 5 Highest Loss Streak 14 | . 7 3 14 To Critical Strikes . | . . . . Average Backups 17 | 3 11 22 22 Power 1 | . 1 . . Propulsion 6 | 2 4 8 9 Utility 5 | . 2 7 9 Weapon 4 | . 3 5 3 Tool/Special . | . . . . Unused Backups 22 | . 4 5 13 Power 1 | . . . 1 Propulsion 12 | . 4 3 5 Utility 7 | . . . 7 Weapon 2 | . . 2 . Tool/Special . | . . . . Average Slot Usage (%) 82 | . 83 86 61 Engine 11 | . 13 10 7 Leg 6 | . . 8 20 Wheel 16 | . 19 17 . Hover 1 | . 4 . . Flight 2 | . . 5 . Device 7 | . 4 11 5 Storage 11 | . 14 11 9 Energy Gun 4 | . 10 1 . Ballistic Gun 13 | . 13 12 15 Ballistic Cannon 3 | . . 8 2 Launcher 1 | . 3 . . Peak Build Rating 19 | 6 12 19 16 Average Rating 11 | 4 7 14 13 On Entrance 8 | . 6 12 15 Avg Prop Armor Cover (%) 7 | . 7 . . Naked Turns 5 | . . . 5 Heaviest Build 94 | 13 49 92 94 Greatest Support 58 | 26 26 58 30 Greatest Overweight (x) 9 | 1 4 9 3 Average Overweight (x) 1 | . 1 1 2 Largest Inventory Capacity 25 | 8 20 25 25 Average Capacity 19 | 7 15 23 24 Most Carried 25 | 6 20 25 25 Average Carried 17 | 3 11 22 23 Final Capacity 25 | 8 20 25 5 Final Carried 25 | 6 19 25 5 Class Distribution -------------------- 55% | Mutant 44% | Scavenger-Mutant Dominant Class ---------------- Mutant | -10/Materials Scavenger-Mutant | -9/Materials Scavenger-Mutant | -8/Materials Resources | -11 -10 -9 -8 ----------- Run | Yrd Mat Mat Mat Matter Collected 838 | 265 193 343 37 Remotely . | . . . . Salvage Created 1129 | . 534 520 75 Parts 73 | . 35 35 3 Haulers Intercepted . | . . . . Recyclers Shooed . | . . . . Parts Field Recycled . | . . . . Retrieved Matter . | . . . . Parts Self-Destructed . | . . . . Prevented . | . . . . Parts Restored . | . . . . Kills | -11 -10 -9 -8 ------- Run | Yrd Mat Mat Mat Combat Hostiles Destroyed 37 | . 21 14 2 Guns 27 | . 17 8 2 Cannons 6 | . . 6 . AOE 4 | . 4 . . Classes Destroyed 7 | . 4 3 . Tunneler 1 | . 1 . . Recycler 2 | . . 2 . Operator 3 | . 1 1 1 Swarmer 15 | . 9 6 . Grunt 19 | . 12 5 2 Duelist 1 | . . 1 . Sentry 2 | . . 2 . Best Kill Streak 7 | . 7 4 2 Combat Bots Only 7 | . 7 4 2 Max Kills in Single Turn 2 | . 2 1 1 Gunslinging 1 | . 1 . . Exploded 2 | . 2 . . Melee . | . . . . Uniques/NPCs Destroyed . | . . . . Combat | -11 -10 -9 -8 -------- Run | Yrd Mat Mat Mat Hostile Shots Fired 333 | . 115 100 118 Missed 82 | . 29 25 28 Hits 251 | . 86 75 90 Melee 5 | . . 5 . Projectile 246 | . 86 70 90 Critical Strikes 10 | . 1 3 6 Damage Taken 3322 | . 895 921 1506 Core 874 | . 201 214 459 Absorbed by Shields . | . . . . Core Remaining (%) 55 | 100 19 46 . Volleys Fired 144 | . 65 50 29 Largest 2 | . 2 2 2 Hottest 90 | . 90 70 56 Shots Fired 258 | . 119 91 48 Gun 187 | . 114 44 29 Cannon 66 | . . 47 19 Launcher 5 | . 5 . . Special . | . . . . Kinetic 188 | . 56 84 48 Thermal 65 | . 58 7 . Explosive 5 | . 5 . . Electromagnetic . | . . . . Robot Hit Streak 13 | . 13 13 6 Robot Miss Streak 6 | . 5 4 6 Penetration Max . | . . . . Secondary Targets 4 | . 1 3 . Max Gunslinging Chain 1 | . 1 1 . Shots Hit Robots 162 | . 75 57 30 Core Hits 77 | . 40 28 9 Critical Kills . | . . . . Critical Parts Destroyed . | . . . . Critical Strikes 3 | . 2 1 . Burn 2 | . 2 . . Blast 1 | . . 1 . Melee Attacks . | . . . . Impact . | . . . . Slashing . | . . . . Piercing . | . . . . Sneak Attacks . | . . . . Combat Hostiles . | . . . . Follow-up Attacks . | . . . . Damage Inflicted 2519 | . 1093 892 534 Guns 1374 | . 743 390 241 Cannons 795 | . . 502 293 Explosions 350 | . 350 . . Melee . | . . . . Ramming . | . . . . Kinetic 1632 | . 272 826 534 Thermal 537 | . 471 66 . Explosive 350 | . 350 . . Electromagnetic . | . . . . Impact . | . . . . Slashing . | . . . . Piercing . | . . . . Highest Corruption . | . . . . Average Corruption . | . . . . Corruption Purged . | . . . . Corruption Blocked . | . . . . Overload Shots . | . . . . Overflow Damage 48 | . 39 9 . Projectiles 9 | . . 9 . Explosions 39 | . 39 . . Melee . | . . . . Knockbacks 10 | . . 5 5 Impact . | . . . . Kinetic 10 | . . 5 5 Secondary . | . . . . Self-Inflicted Damage 14 | . 14 . . Shots 1 | . 1 . . Rammed . | . . . . Targets Rammed . | . . . . Kicked . | . . . . Crushed . | . . . . Highest Temperature 162 | . 140 24 162 Average Temperature 49 | . 51 10 76 Received Heat Transfer 1515 | . 372 225 918 Siege Activations . | . . . . Martial Activations . | . . . . Shielding Activations . | . . . . Robots Disrupted . | . . . . Combat Hostiles . | . . . . Robots Corrupted . | . . . . Combat Hostiles . | . . . . Parts Fried . | . . . . Impact Corruptions . | . . . . Robots Melted . | . . . . Combat Hostiles . | . . . . Parts Melted 2 | . 2 . . Heat Transferred 1597 | . 1447 150 . Parts Sabotaged . | . . . . Parts Stolen . | . . . . Parts Stripped . | . . . . Power Chain Reactions . | . . . . Alert | -11 -10 -9 -8 ------- Run | Yrd Mat Mat Mat Maximum Alert Level 1 | . 1 1 . Low Security (%) 89 | 100 74 99 100 Level 1 10 | . 25 . . Level 2 . | . . . . Level 3 . | . . . . Level 4 . | . . . . Level 5 . | . . . . High Security . | . . . . Max Security . | . . . . Peak Influence 247 | . 247 204 50 Initial 100 | . . 100 48 Average 95 | . 113 109 21 Influence Increases 1070 | . 559 426 85 Destroy 0b10 Robot/C 740 | . 420 280 40 Destroy 0b10 Robot/NC 30 | . 10 15 5 Destroy Leader 160 | . 80 70 10 Disable Machine 15 | . . . 15 Destroy Structure 35 | . 34 1 . Lose Combat Pursuer 90 | . 15 60 15 Influence Decreases 1070 | . 321 548 201 Entered New Map 206 | . . 138 68 Time Decay 594 | . 221 310 63 Lost Part 270 | . 100 100 70 Squads Dispatched 7 | . 4 1 2 Investigation 4 | . 3 . 1 Extermination . | . . . . Reinforcement 2 | . 1 1 . Assault . | . . . . Garrison 1 | . . . 1 Intercept . | . . . . Searches Triggered . | . . . . Construction Impeded . | . . . . Haulers Reinforced . | . . . . Active Scanning Responses . | . . . . Cargo Convoy Interrupts . | . . . . Stealth | -11 -10 -9 -8 --------- Run | Yrd Mat Mat Mat Distress Signals 5 | . 2 2 1 Communications Jammed . | . . . . Distress Signals . | . . . . Times Spotted 57 | . 27 23 7 Peak Tracking Total 7 | . 4 7 6 Tactical Retreats 4 | . 1 2 1 Traps | -11 -10 -9 -8 ------- Run | Yrd Mat Mat Mat Traps Triggered 2 | . 2 . . Indirectly . | . . . . Trap Hack Attempts . | . . . . Triggered . | . . . . Disarmed . | . . . . Reprogrammed . | . . . . Reused . | . . . . Traps Extracted . | . . . . Installed . | . . . . Triggered . | . . . . Machines | -11 -10 -9 -8 ---------- Run | Yrd Mat Mat Mat Machines Disabled 1 | . . . 1 Max in Single Turn 1 | . . . 1 Machines Repaired . | . . . . Machines Dismantled . | . . . . Machines Sabotaged . | . . . . Overloaded Fab Kills . | . . . . Hacking | -11 -10 -9 -8 --------- Run | Yrd Mat Mat Mat Machines Accessed 5 | . 4 . 1 Terminals 3 | . 3 . . Fabricators . | . . . . Repair Stations . | . . . . Recycling Units 1 | . 1 . . Scanalyzers 1 | . . . 1 Garrison Access . | . . . . Total Hacks 13 | . 9 . 4 Successful 4 | . 2 . 2 Failed 9 | . 7 . 2 Catastrophic . | . . . . Database Lockouts . | . . . . Manual . | . . . . Terminals 8 | . 8 . . Fabricators . | . . . . Repair Stations . | . . . . Recycling Units 1 | . 1 . . Scanalyzers 4 | . . . 4 Garrison Access . | . . . . Terminal Hacks 1 | . 1 . . Zone Layout 1 | . 1 . . Fabricator Hacks . | . . . . Repair Station Hacks . | . . . . Recycling Unit Hacks 1 | . 1 . . Report Inventory 1 | . 1 . . Scanalyzer 2 | . . . 2 Retrieve Study 2 | . . . 2 Garrison Access Hacks . | . . . . Unauthorized Hacks . | . . . . Terminals . | . . . . Fabricators . | . . . . Repair Stations . | . . . . Recycling Units . | . . . . Scanalyzers . | . . . . Garrison Access . | . . . . Data Cores Recovered 1 | . . . 1 Used . | . . . . Hacking Detections 5 | . 4 . 1 Full Trace Events 3 | . 2 . 1 Feedback Events . | . . . . Feedback Blocked . | . . . . Robot Schematics Acquired . | . . . . Robots Built . | . . . . Authchips . | . . . . Time . | . . . . Total Robot Build Rating . | . . . . Part Schematics Acquired . | . . . . Parts Built . | . . . . Authchips . | . . . . Time . | . . . . Total Part Build Rating . | . . . . Part Studies Acquired 2 | . . . 2 Parts Repaired . | . . . . Time . | . . . . Parts Recycled . | . . . . Recycled Matter . | . . . . Retrieved Matter . | . . . . Retrieved Components . | . . . . Parts Scanalyzed . | . . . . Part Schematics Acquired . | . . . . Parts Damaged . | . . . . Bothacking | -11 -10 -9 -8 ------------ Run | Yrd Mat Mat Mat Used RIF Installer . | . . . . Robots Hacked . | . . . . Non-combat . | . . . . Combat . | . . . . Robot Hacks Applied . | . . . . Relay Couplers Released . | . . . . Fabnet Peak Effective % . | . . . . Robots Rewired . | . . . . Allies Hacked . | . . . . Hacks Repelled . | . . . . Allies | -11 -10 -9 -8 -------- Run | Yrd Mat Mat Mat Total Allies . | . . . . Largest Group . | . . . . Highest-Rated Group . | . . . . Highest-Rated Ally . | . . . . Total Orders . | . . . . Ally Attacks . | . . . . Total Damage . | . . . . Kills . | . . . . Allies Corrupted . | . . . . Allies Melted . | . . . . Intel | -11 -10 -9 -8 ------- Run | Yrd Mat Mat Mat Active Infowar (turns) 1024 | . 214 684 126 Terrain 822 | . 12 684 126 Structural 202 | . 202 . . Robot Analysis Total . | . . . . Derelict Logs Recovered . | . . . . Drone Launches . | . . . . Drone Recoveries . | . . . . Exploration | -11 -10 -9 -8 ------------- Run | Yrd Mat Mat Mat Turns Passed 1575 | 55 632 684 204 Spaces Moved 732 | 43 365 281 43 Core 10 | 2 . . 8 Treads . | . . . . Legs 91 | . . 56 35 Wheels 627 | 41 365 221 . Hover . | . . . . Flight 4 | . . 4 . Fastest Speed 50 | 50 90 95 50 Average Speed 140 | 89 113 162 277 Slowest Speed 750 | 100 145 750 330 Overloaded Moves . | . . . . Propulsion Burnouts . | . . . . Robots Hopped . | . . . . Potential Cave-ins . | . . . . Cave-ins Triggered . | . . . . Exploration Rate (%) 21 | 4 56 20 6 Regions Visited 3 Branch Regions . Pre-discovered Areas . | . . . . Known Exits Taken . | . . . . Unknown Exits Taken 3 | 1 1 1 . Scrap Searched . | . . . . Spaces Dug . | . . . . Terrain Destroyed 40 | . 40 . . Melee . | . . . . Projectile . | . . . . AOE 40 | . 40 . . Terrain Rammed . | . . . . Walls Destroyed . | . . . . Machines Disabled . | . . . . Actions | -11 -10 -9 -8 --------- Run | Yrd Mat Mat Mat Total 1032 | 55 473 425 79 Wait 47 | . 3 44 . Move 729 | 42 364 280 43 Hop . | . . . . Pick Up 49 | 6 23 20 . Fast Attach 18 | 6 5 7 . Attach 20 | . 6 9 5 Detach 4 | . . 4 . Swap 5 | 1 2 1 1 Drop 16 | . 5 10 1 Fire 144 | . 65 50 29 Melee . | . . . . Ram . | . . . . Kick . | . . . . Crush . | . . . . Escape Stasis . | . . . . Rewire . | . . . . Trap . | . . . . Miscellaneous . | . . . . Route ------- -11/Scrapyard -10/Materials (discovered 2 exits: [*Mat] / [*Min]) -9/Materials -8/Materials History --------- Turn | Location | Event 15 | -11/Scrapyard | Discovered new exit (range 15) 56 | -11/Scrapyard | Entered Materials 303 | -10/Materials | Build established: Mutant 426 | -10/Materials | Discovered new exit (range 14) 508 | -10/Materials | Destroyed 7 combat bots 514 | -10/Materials | Lost 7 parts (2p1n1u3w) 538 | -10/Materials | Discovered new exit (range 15) 626 | -10/Materials | Core integrity fell below 50% 660 | -10/Materials | Core integrity fell below 20% 688 | -10/Materials | Entered another Materials area 688 | -9/Materials | Evolved 2 slots: Propulsion x2 788 | -9/Materials | Lost 3 parts (1p1n1w) 1013 | -9/Materials | Lost 3 parts (2n1w) 1117 | -9/Materials | Lost 3 parts (1p2n) 1153 | -9/Materials | Core integrity fell below 50% 1322 | -9/Materials | Discovered new exit (range 16) 1372 | -9/Materials | Entered another Materials area 1372 | -8/Materials | Evolved 2 slots: Propulsion x2 1467 | -8/Materials | Build established: Scavenger-Mutant 1538 | -8/Materials | Core integrity fell below 50% 1561 | -8/Materials | Garrison activated, responded to threat 1571 | -8/Materials | Released all parts (2) 1575 | -8/Materials | Core integrity fell below 20% 1576 | -8/Materials | Self-destructed Last Messages --------------- 01561_ ALERT: Activating Garrison Access M001. 01562_ R-06 Scavenger collects Lgt. Nuclear Core. 01564_ Critical hit (Burn: +37). 01567_ R-06 Scavenger collects Lgt. Nuclear Core. 01568_ Targeting Computer destroyed. 01568_ Critical hit (Burn: +37). 01571_ Released Huge Storage Unit. 01571_ Seismic Detector crushed and broken. 01571_ Lgt. Armor Plating crushed and broken. 01571_ Flight Unit+ crushed and broken. 01571_ VTOL Module+ crushed and broken. 01571_ Released Imp. Light Cannon. 01571_ Imp. Light Cannon crushed and broken. 01572_ R-06 Scavenger collects Med. Storage Unit. 01574_ Acquired 1 matter. 01575_ Acquired 21 matter. 01575_ R-06 Scavenger collects Flight Unit+. Map ----- +----------------------------------------------------+ | ???????????## */ !#??? ?????#???????????? | | ????????#???# * # ? ???? ?????????????? | | ????????????# #?????????????????????? | | ????????????#####+##?????????????????????? | | ?????#??????????# #??????????????????????? | | ????????????#???# ##??#??????#???????????? | | ????????????????#=#????#??????? ?????????? | | ??#?#?????#?????# #?????????#????????????? | | ?????????######## #??#???????????????????? | | ????#????# ] # #??????????????????????? | | ???#??#?## / # ##?????????????????????? | | ?????????# + #????? ????????????????? | | ?????????# "" #u#???"??? ??????????????? | | ?????????# S"" # #??????????????????????? | | ?????????# "" # #?? ???????????????????? | | ?????????########!#?#??? ?? ???? ????????? | | ???????#????#???#=#?? ???????????????????? | | ?????##?????? ??#=#???????????? ?????????? | | ???????????? ???#!#???#???##?????????????? | | ????????????????#*#??????????????????????? | | ????????????????#!##? ???????????????????? | | ????????????"???#=#??????????????????????? | | ?????? ???? ????#=#??????????????????????? | | ????????##+#+####!##?????????????????????? | | ????????# ! #????? ???????????????? | | ????????+ @r#?? ??????????????????? | | ????????# #?????????????????????? | | ????????### #?#???????????????????? | | ??????? ??# ** % "????????????????????? | | ?????????"" *! % "#???????????????????? | | ????????#"" * g ""#???????????????????? | | ????????#"T g###???????????????????? | | ????????#"" % %#?????????????????????? | | ????????#"" % #?????????????????????? | | ????????### #?????????????????????? | | ??????????# #?????????????????????? | | ??????????# #### #?????????????????????? | | ??????????# ???# % #?????????????????????? | | ??????????# ???? ?????????????????????? | | ???????????????? ?????????????????????? | | ???????????????? ??????????????????????? | | ?????????????????????????????????????????? | | ?????????????????????????????????????????? | | ?????????????????????????????????????????? | | ?????????????????????????????????????????? | | ?????????????????????????????????????????? | | ?????????????????????????????????????????? | | ?????????????????????????????????????????? | | ?????????????????????????????????????????? | | ?????????????????????????????????????????? | +----------------------------------------------------+ Best States ------------- Heat Dissipation 31 Energy Generation 12 Energy Capacity 265 Matter Stores 300 Matter Capacity 300 Sight Range 16 Terrain Scan Range 16 Terrain Scan Density 10 Evasion (%) 42 Targeting Accuracy 5 Item Schematics ----------------- None Robot Schematics ------------------ None Fabricated ------------ Nothing Repaired ---------- Nothing Studied --------- VTOL Module | -8/Materials | Hacked Flight Unit | -8/Materials | Hacked Alien Tech Used ----------------- None Achievements -------------- None Challenges ------------ None Game ------ Seed CoolingDispersalPlatform Manual? 0 Play Time 00:24:17 Cumulative 61.2 hours Start 2026.04.09 @ 18:46:59 End 2026.04.09 @ 19:10:43 Sessions 1 Manual Loads 0 Difficulty Rogue Special Mode None Game No. 100 Rogue 100 Adventurer 0 Explorer 0 Win Type - Total 0 Types 0/0/0/0/0/0/0/0/0/0 Lore% 16 Gallery% 30 Achievement% 21 Wizard Run 0 Options --------- Layout 1 ASCII 1 Keyboard 0 Movement Mouse Keybinds 0 Fullscreen 1 Font 24/Cog Map View 50x35 Zoom Use 0% Tactical HUD 1 Map Filters NONE Filters NONE Steam 0 RUN: a76fc435-1210-4b84-8dff-3f30ceaafa02